bitfinex-derivatives/quotes_BTCF0:USTF0_20250608
["timestamp","ask_amount","ask_price","bid_price","bid_amount"]
[1749356929761,1.12459267,105580.0,105570.0,0.29290095]
[1749356929963,1.12459267,105580.0,105570.0,0.65370095]
[1749356931660,1.12459267,105580.0,105570.0,0.29290095]
[1749356931863,1.12459267,105580.0,105570.0,0.65370095]
[1749356932562,1.12459267,105580.0,105570.0,0.29290095]
[1749356932762,1.12459267,105580.0,105570.0,0.65370095]
[1749356934165,1.12459267,105580.0,105570.0,0.29290095]
[1749356934365,1.12459267,105580.0,105570.0,0.65370095]
[1749356935266,1.12459267,105580.0,105570.0,1.08206095]
[1749356936467,1.12459267,105580.0,105570.0,0.72126095]
[1749356936679,1.12459267,105580.0,105570.0,1.08206095]
[1749356937368,1.15912048,105580.0,105570.0,1.08206095]
[1749356940971,1.15912048,105580.0,105570.0,0.72126095]
[1749356941274,1.15912048,105580.0,105570.0,1.08206095]
[1749356941570,1.22912048,105580.0,105570.0,1.08206095]
[1749356943575,1.15912048,105580.0,105570.0,1.08206095]
[1749356943875,1.15912048,105580.0,105570.0,0.72126095]
[1749356944075,1.15912048,105580.0,105570.0,1.08206095]
[1749356944978,1.15912048,105580.0,105570.0,0.72126095]
[1749356945174,1.15912048,105580.0,105570.0,1.08206095]
[1749356946280,1.15912048,105580.0,105570.0,0.72126095]
[1749356946481,1.15912048,105580.0,105570.0,1.08206095]
[1749356947374,1.48912048,105580.0,105570.0,1.08206095]
[1749356947576,1.15912048,105580.0,105570.0,1.08206095]
[1749356948182,1.15912048,105580.0,105570.0,0.72126095]
[1749356948385,1.15912048,105580.0,105570.0,1.08206095]
[1749356949484,1.15912048,105580.0,105570.0,0.72126095]
[1749356949685,1.15912048,105580.0,105570.0,1.08206095]
[1749356950284,1.15912048,105580.0,105570.0,0.72126095]
[1749356950480,1.15912048,105580.0,105570.0,1.08206095]
[1749356951485,1.05459267,105580.0,105570.0,1.08206095]
[1749356951682,1.05459267,105580.0,105570.0,1.11496095]
[1749356951888,1.15912048,105580.0,105570.0,1.14706095]
[1749356953083,1.11178198,105580.0,105570.0,1.14706095]
[1749356953488,1.00725417,105580.0,105570.0,1.14706095]
[1749356955183,1.00725417,105580.0,105570.0,0.78626095]
[1749356955389,1.00725417,105580.0,105570.0,1.14706095]
[1749356955590,1.11178198,105580.0,105570.0,1.14706095]
[1749356956491,1.11178198,105580.0,105570.0,0.78626095]
[1749356956893,1.47178198,105580.0,105570.0,1.14706095]
[1749356957091,1.11178198,105580.0,105570.0,1.14706095]
[1749356959295,1.11178198,105580.0,105570.0,0.78626095]
[1749356959488,1.11178198,105580.0,105570.0,1.14706095]
[1749356959794,1.11178198,105580.0,105570.0,0.78626095]
[1749356959994,1.11178198,105580.0,105570.0,1.14706095]
[1749356961796,1.11178198,105580.0,105570.0,1.0878928]
[1749356962097,1.46020919,105580.0,105570.0,1.0878928]
[1749356962291,1.23020919,105580.0,105570.0,1.0878928]
[1749356963094,1.46020919,105580.0,105570.0,1.0878928]
[1749356963295,1.56020919,105580.0,105570.0,1.0878928]
[1749356963498,1.23020919,105580.0,105570.0,1.0878928]
[1749356964396,1.55020919,105580.0,105570.0,1.0878928]
[1749356965198,1.43178198,105580.0,105570.0,1.0878928]
[1749356965706,1.33362198,105580.0,105570.0,1.0878928]
[1749356966001,1.43166198,105580.0,105570.0,0.7270928]
[1749356966199,1.43166198,105580.0,105570.0,1.0878928]
[1749356967099,1.43166198,105580.0,105570.0,0.7270928]
[1749356967295,1.48166198,105580.0,105570.0,1.0878928]
[1749356967901,1.48166198,105580.0,105570.0,0.7270928]
[1749356968102,1.48166198,105580.0,105570.0,1.0878928]
[1749356968401,1.44166198,105580.0,105570.0,1.0878928]
[1749356968796,1.18166198,105580.0,105570.0,0.7270928]
[1749356968996,1.18166198,105580.0,105570.0,1.0878928]
[1749356971100,1.07713417,105580.0,105570.0,1.0878928]
[1749356971303,1.07713417,105580.0,105570.0,0.7270928]
[1749356971503,1.07713417,105580.0,105570.0,1.0878928]
[1749356971699,1.07713417,105580.0,105570.0,1.14706095]
[1749356971905,1.32713417,105580.0,105570.0,0.78626095]
[1749356972103,1.32713417,105580.0,105570.0,1.14706095]
[1749356972301,1.08713417,105580.0,105570.0,1.14706095]
[1749356972801,1.32713417,105580.0,105570.0,1.14706095]
[1749356973506,1.08713417,105580.0,105570.0,1.14706095]
[1749356976307,1.1064884,105580.0,105570.0,1.14706095]
[1749356977509,1.1064884,105580.0,105570.0,0.78626095]
[1749356977710,1.1064884,105580.0,105570.0,1.14706095]
[1749356978008,1.1064884,105580.0,105570.0,0.78626095]
[1749356978208,1.1064884,105580.0,105570.0,1.14706095]
[1749356980709,1.1064884,105580.0,105570.0,0.78626095]
[1749356980905,1.1064884,105580.0,105570.0,1.14706095]
[1749356981716,1.1064884,105580.0,105570.0,0.78626095]
[1749356981917,1.1064884,105580.0,105570.0,1.14706095]
[1749356982213,1.1064884,105580.0,105570.0,0.78626095]
[1749356982401,1.1064884,105580.0,105570.0,1.14706095]
[1749356989014,1.1064884,105580.0,105570.0,0.78626095]
[1749356989210,1.1064884,105580.0,105570.0,1.14706095]
[1749356989516,1.1064884,105580.0,105570.0,0.78626095]
[1749356989715,1.1064884,105580.0,105570.0,1.14706095]
[1749356989913,1.0964884,105580.0,105570.0,1.14706095]
[1749356992012,1.20101621,105580.0,105570.0,1.14706095]
[1749356995918,1.10297621,105580.0,105570.0,1.14706095]
[1749356996114,1.20097621,105580.0,105570.0,1.14706095]
[1749356996720,1.0964484,105580.0,105570.0,1.14706095]
[1749356998415,1.0964484,105580.0,105570.0,0.78626095]
[1749356998616,1.0964484,105580.0,105570.0,1.14706095]
[1749357003025,1.20097621,105580.0,105570.0,1.14706095]
[1749357004328,1.44097621,105580.0,105570.0,1.14706095]
[1749357004628,1.13097621,105580.0,105570.0,1.14706095]
[1749357004822,1.50097621,105580.0,105570.0,1.14706095]
[1749357005418,1.0264484,105580.0,105570.0,1.14706095]
[1749357006629,1.13097621,105580.0,105570.0,1.14706095]
[1749357007526,1.0264484,105580.0,105570.0,1.14706095]
[1749357009729,0.9962484,105580.0,105570.0,1.14706095]
[1749357009927,0.9962484,105580.0,105570.0,1.18016095]
[1749357010233,0.99219962,105580.0,105570.0,1.18016095]
[1749357011033,0.9962484,105580.0,105570.0,1.18016095]
[1749357011732,0.9662484,105580.0,105570.0,1.1209928]
[1749357016130,0.96219962,105580.0,105570.0,1.1209928]
[1749357018539,0.3383164,105580.0,105570.0,1.1209928]
[1749357018733,0.21284421,105580.0,105570.0,1.18016095]
[1749357019036,0.21304421,105580.0,105570.0,1.13578295]
[1749357019237,0.21709299,105580.0,105570.0,1.13578295]
[1749357019627,0.12827259,105580.0,105570.0,1.18014481]
[1749357019831,0.12827259,105580.0,105570.0,1.18114481]
[1749357020037,0.12827259,105580.0,105570.0,1.18314481]
[1749357020240,0.12422381,105580.0,105570.0,1.18314481]
[1749357020439,0.31356071,105580.0,105570.0,1.13778295]
[1749357020640,0.31356071,105580.0,105570.0,1.13878295]
[1749357020939,0.12422381,105580.0,105570.0,1.18313338]
[1749357021835,0.31356071,105580.0,105570.0,1.22753518]
[1749357023135,0.12422381,105580.0,105570.0,1.22753518]
[1749357026239,0.12422381,105580.0,105570.0,1.23686872]
[1749357026840,0.12422381,105580.0,105570.0,1.22753518]
[1749357029339,0.31356071,105580.0,105570.0,1.22753518]
[1749357030942,0.31356071,105580.0,105570.0,1.23680323]
[1749357031843,0.31356071,105580.0,105570.0,1.22753518]
[1749357032144,0.31356071,105580.0,105570.0,0.86673518]
[1749357032343,0.31356071,105580.0,105570.0,1.22753518]
[1749357033040,0.31356071,105580.0,105570.0,0.86673518]
[1749357033233,0.31356071,105580.0,105570.0,1.22753518]
[1749357035549,0.31356071,105580.0,105570.0,0.86673518]
[1749357035749,0.31356071,105580.0,105570.0,1.22753518]
[1749357037352,0.31760949,105580.0,105570.0,1.22753518]
[1749357043454,0.31356071,105580.0,105570.0,1.22753518]
[1749357044444,0.31760949,105580.0,105570.0,1.22753518]
[1749357045056,0.31760949,105580.0,105570.0,0.86673518]
[1749357045251,0.31760949,105580.0,105570.0,1.22753518]
[1749357046448,0.2090329,105580.0,105570.0,1.22753518]
[1749357046649,0.31356071,105580.0,105570.0,1.22753518]
[1749357047459,0.21308168,105580.0,105570.0,1.22753518]
[1749357047758,0.31760949,105580.0,105570.0,1.22753518]
[1749357048258,0.31740949,105580.0,105570.0,1.22753518]
[1749357048658,0.31740949,105580.0,105570.0,1.16836703]
[1749357050560,0.31336071,105580.0,105570.0,1.16836703]
[1749357051660,0.31740949,105580.0,105570.0,1.16836703]
[1749357051956,0.31740949,105580.0,105570.0,1.22753283]
[1749357052561,0.31740949,105580.0,105570.0,0.86673283]
[1749357052757,0.31740949,105580.0,105570.0,1.22753283]
[1749357055965,0.31740949,105580.0,105570.0,0.86673283]
[1749357056165,0.31740949,105580.0,105570.0,1.22753283]
[1749357061772,0.31740949,105580.0,105570.0,1.16836703]
[1749357062668,0.31740949,105580.0,105570.0,0.80756703]
[1749357062873,0.31740949,105580.0,105570.0,1.16836703]
[1749357063672,0.31740949,105580.0,105570.0,0.80756703]
[1749357063872,0.31740949,105580.0,105570.0,1.16836703]
[1749357064866,0.12807259,105580.0,105570.0,1.16836703]
[1749357065067,0.31740949,105580.0,105570.0,1.16836703]
[1749357066172,0.12807259,105580.0,105570.0,1.16836703]
[1749357071380,0.12807259,105580.0,105570.0,0.80756703]
[1749357071677,0.12807259,105580.0,105570.0,1.52916703]
[1749357073987,0.12402381,105580.0,105570.0,1.52916703]
[1749357076881,0.12402381,105580.0,105570.0,1.64751283]
[1749357077792,0.31336071,105580.0,105570.0,1.64751283]
[1749357078086,0.12402381,105580.0,105570.0,1.64751283]
[1749357078990,0.12807259,105580.0,105570.0,1.64751283]
[1749357079490,0.12807259,105580.0,105570.0,0.92591283]
[1749357079788,0.31740949,105580.0,105570.0,1.64751283]
[1749357080391,0.31740949,105580.0,105570.0,0.92591283]
[1749357080581,0.31740949,105580.0,105570.0,1.64751283]
[1749357080888,0.12807259,105580.0,105570.0,1.64751283]
[1749357082289,0.12402381,105580.0,105570.0,1.64751283]
[1749357084889,0.12402381,105580.0,105570.0,1.5587606]
[1749357085289,0.12402381,105580.0,105570.0,1.66328841]
[1749357085490,0.12402381,105580.0,105570.0,1.5587606]
[1749357085897,0.12422381,105580.0,105570.0,1.5587606]
[1749357088898,0.12422381,105580.0,105570.0,1.6087606]
[1749357089094,0.12827259,105580.0,105570.0,1.6087606]
[1749357089301,0.02374478,105580.0,105570.0,1.6087606]
[1749357089497,0.12827259,105580.0,105570.0,1.8387606]
[1749357091803,0.12827259,105580.0,105570.0,1.92741096]
[1749357097099,0.10891836,105580.0,105570.0,1.92741096]
[1749357098700,0.10891836,105580.0,105570.0,1.20581096]
[1749357098904,0.10891836,105580.0,105570.0,1.92741096]
[1749357100608,0.10891836,105580.0,105570.0,1.20581096]
[1749357100804,0.10891836,105580.0,105570.0,1.92741096]
[1749357101807,0.10891836,105580.0,105570.0,1.8387606]
[1749357102210,0.21344617,105580.0,105570.0,1.8387606]
[1749357102809,0.21344617,105580.0,105570.0,1.1171606]
[1749357103005,0.21344617,105580.0,105570.0,1.8387606]
[1749357107415,0.21344617,105580.0,105570.0,1.9959606]
[1749357107614,0.21344617,105580.0,105570.0,1.8387606]
[1749357108318,0.00439055,105580.0,105570.0,1.8387606]
[1749357108616,0.21344617,105580.0,105570.0,1.8387606]
[1749357113722,0.21344617,105580.0,105570.0,1.98669286]
[1749357115719,0.21324617,105580.0,105570.0,1.98669286]
[1749357117326,0.21324617,105580.0,105570.0,1.8387606]
[1749357117519,0.21324617,105580.0,105570.0,1.9959606]
[1749357117725,0.21324617,105580.0,105570.0,1.8387606]
[1749357120224,0.21324617,105580.0,105570.0,1.1171606]
[1749357120426,0.21324617,105580.0,105570.0,1.8387606]
[1749357121130,0.10871836,105580.0,105570.0,1.94328841]
[1749357121326,0.10891836,105580.0,105570.0,1.94328841]
[1749357121527,0.10891836,105580.0,105570.0,1.8387606]
[1749357122727,0.10891836,105580.0,105570.0,1.94328841]
[1749357123821,0.00439055,105580.0,105570.0,1.82494261]
[1749357124121,0.00419055,105580.0,105570.0,1.97287487]
[1749357124326,0.00419055,105580.0,105570.0,1.82494261]
[1749357124524,0.00419055,105580.0,105570.0,2.24806844]
[1749357124731,0.00439055,105580.0,105570.0,2.10029952]
[1749357124936,0.00419055,105580.0,105570.0,2.20482733]
[1749357125229,0.10452781,105600.0,105580.0,0.1419943]
[1749357125424,0.10452781,105590.0,105580.0,1.74313426]
[1749357126328,0.39234177,105600.0,105590.0,0.17073811]
[1749357126525,0.66539739,105600.0,105590.0,0.43933135]
[1749357127429,0.7699252,105600.0,105590.0,0.43933135]
[1749357128626,0.66539739,105600.0,105590.0,0.43933135]
[1749357128823,0.66639739,105600.0,105590.0,0.43933135]
[1749357129025,0.66839739,105600.0,105590.0,0.43933135]
[1749357129318,0.66719739,105600.0,105590.0,0.43933135]
[1749357129524,0.7717252,105600.0,105590.0,0.43933135]
[1749357129727,0.7719252,105600.0,105590.0,0.43933135]
[1749357129919,0.7699252,105600.0,105590.0,0.43933135]
[1749357131124,0.03154177,105600.0,105590.0,0.61933135]
[1749357131329,0.24039739,105600.0,105590.0,0.61933135]
[1749357131726,0.13606958,105600.0,105590.0,0.98013135]
[1749357131924,0.13586958,105600.0,105590.0,0.98013135]
[1749357132131,0.13606958,105600.0,105590.0,0.98013135]
[1749357132321,0.13586958,105600.0,105590.0,0.98013135]
[1749357132525,0.13606958,105600.0,105590.0,0.98013135]
[1749357132827,0.10486958,105600.0,105590.0,0.98013135]
[1749357133224,0.00034177,105600.0,105590.0,0.99606592]
[1749357133425,0.00014177,105600.0,105590.0,0.99606592]
[1749357133624,0.10486958,105600.0,105590.0,0.99606592]
[1749357134028,0.10466958,105600.0,105590.0,0.99606592]
[1749357134229,0.10486958,105600.0,105590.0,0.99606592]
[1749357135332,0.10486958,105600.0,105590.0,1.11394634]
[1749357136031,0.10486958,105600.0,105590.0,1.28684634]
[1749357137721,0.10486958,105600.0,105590.0,1.44404634]
[1749357138833,0.10486958,105600.0,105590.0,1.87200634]
[1749357139933,0.10891836,105600.0,105590.0,1.87200634]
[1749357141135,0.00439055,105600.0,105590.0,1.88850633]
[1749357141342,0.00419055,105600.0,105590.0,1.88850633]
[1749357141741,5e-08,105600.0,105590.0,1.81384836]
[1749357141936,0.10452781,105610.0,105600.0,0.1893009]
[1749357142242,0.10452781,105610.0,105600.0,1.21082156]
[1749357143340,0.10752781,105610.0,105600.0,1.28738575]
[1749357144944,0.003,105610.0,105600.0,1.31828575]
[1749357145139,0.003,105610.0,105600.0,1.34868575]
[1749357145340,0.10752781,105610.0,105600.0,1.34868575]
[1749357145539,0.10752781,105610.0,105600.0,1.37988575]
[1749357146143,0.003,105610.0,105600.0,1.67103857]
[1749357146342,0.003,105610.0,105600.0,1.56651076]
[1749357146541,0.10752781,105610.0,105600.0,1.56651076]
[1749357146844,0.10772781,105610.0,105600.0,1.56651076]
[1749357147031,0.0032,105610.0,105600.0,1.56651076]
[1749357149040,0.0032,105610.0,105600.0,1.92731076]
[1749357149534,0.0032,105610.0,105600.0,1.82278295]
[1749357149744,0.0032,105610.0,105600.0,1.92731076]
[1749357151243,0.0032,105610.0,105600.0,2.11669476]
[1749357151449,0.10752781,105610.0,105600.0,2.11669476]
[1749357151746,0.10752781,105610.0,105600.0,1.92731076]
[1749357151747,0.10772781,105610.0,105600.0,1.92731076]
[1749357152440,0.10772781,105610.0,105600.0,1.8096129]
[1749357152841,0.10772781,105610.0,105600.0,1.70508509]
[1749357153042,0.10772781,105610.0,105600.0,1.85283535]
[1749357154144,0.0032,105610.0,105600.0,1.95736316]
[1749357154348,0.10752781,105610.0,105600.0,1.95736316]
[1749357154553,0.10772781,105610.0,105600.0,1.95736316]
[1749357154747,0.10472781,105610.0,105600.0,2.14674716]
[1749357154952,0.00014177,105620.0,105610.0,0.3464831]
[1749357155151,0.00014177,105620.0,105610.0,2.1046813]
[1749357155152,0.10466958,105620.0,105610.0,2.1046813]
[1749357156147,0.10766958,105620.0,105610.0,2.09155091]
[1749357156454,0.10786958,105620.0,105610.0,2.13477336]
[1749357158150,0.10986958,105620.0,105610.0,2.13477336]
[1749357159053,0.10986958,105620.0,105610.0,2.2523531]
[1749357159452,0.10986958,105620.0,105610.0,2.13469336]
[1749357159954,0.14216958,105620.0,105610.0,2.13469336]
[1749357160851,0.14216958,105620.0,105610.0,2.30759336]
[1749357164352,0.14216958,105620.0,105610.0,2.15039336]
[1749357164547,0.14216958,105620.0,105610.0,2.51119336]
[1749357165056,0.14216958,105620.0,105610.0,1.78959336]
[1749357165358,0.14216958,105620.0,105610.0,2.51119336]
[1749357165951,0.14216958,105620.0,105610.0,1.78959336]
[1749357166153,0.14216958,105620.0,105610.0,2.51119336]
[1749357168359,0.14216958,105620.0,105610.0,2.71817808]
[1749357169657,0.14216958,105620.0,105610.0,2.57042782]
[1749357170560,0.14621836,105620.0,105610.0,2.57042782]
[1749357170762,0.17621836,105620.0,105610.0,1.84882782]
[1749357171062,0.17621836,105620.0,105610.0,2.57042782]
[1749357172359,0.07169055,105620.0,105610.0,2.57042782]
[1749357172561,0.17621836,105620.0,105610.0,2.57042782]
[1749357173861,0.17621836,105620.0,105610.0,2.3634431]
[1749357174558,0.17621836,105620.0,105610.0,2.57042782]
[1749357177760,0.17221836,105620.0,105610.0,2.57042782]
[1749357178058,0.17321836,105620.0,105610.0,2.57042782]
[1749357178854,0.17321836,105620.0,105610.0,1.84882782]
[1749357179058,0.17321836,105620.0,105610.0,2.57042782]
[1749357181860,0.17321836,105620.0,105610.0,2.71798689]
[1749357182062,0.17321836,105620.0,105610.0,2.51100217]
[1749357182360,0.17321836,105620.0,105610.0,2.3634431]
[1749357182660,0.17321836,105620.0,105610.0,2.57042782]
[1749357184058,0.27774617,105620.0,105610.0,2.57042782]
[1749357185362,0.17321836,105620.0,105610.0,2.57042782]
[1749357186664,0.06869055,105620.0,105610.0,2.57042782]
[1749357186863,0.17321836,105620.0,105610.0,2.57042782]
[1749357187367,0.17321836,105620.0,105610.0,1.84882782]
[1749357187559,0.17321836,105620.0,105610.0,2.57042782]
[1749357187970,0.17321836,105620.0,105610.0,1.84882782]
[1749357188167,0.17321836,105620.0,105610.0,2.57042782]
[1749357188168,0.17301836,105620.0,105610.0,2.57042782]
[1749357190360,0.17301836,105620.0,105610.0,2.66866782]
[1749357190767,0.06849055,105620.0,105610.0,2.66866782]
[1749357191066,0.17301836,105620.0,105610.0,2.66866782]
[1749357192863,0.17301836,105620.0,105610.0,2.77319563]
[1749357193063,0.17301836,105620.0,105610.0,2.66866782]
[1749357193771,0.06849055,105620.0,105610.0,2.66866782]
[1749357193962,0.17301836,105620.0,105610.0,2.66866782]
[1749357196069,0.17301836,105620.0,105610.0,2.77319563]
[1749357197067,0.14301836,105620.0,105610.0,2.77319563]
[1749357197469,0.11071836,105620.0,105610.0,2.77319563]
[1749357197666,0.10971836,105620.0,105610.0,2.77319563]
[1749357197969,0.10466958,105620.0,105610.0,2.77319563]
[1749357198171,0.00014177,105620.0,105610.0,2.77319563]
[1749357198472,0.10466958,105620.0,105610.0,2.77319563]
[1749357198664,0.10466958,105620.0,105610.0,2.56621091]
[1749357198862,0.10871836,105620.0,105610.0,2.56621091]
[1749357200568,0.10871836,105620.0,105610.0,2.4616831]
[1749357200873,0.13921836,105620.0,105610.0,2.56621091]
[1749357202776,0.13921836,105620.0,105610.0,2.77281231]
[1749357203976,0.13921836,105620.0,105610.0,2.24653231]
[1749357204170,0.16951836,105620.0,105610.0,2.77389231]
[1749357204369,0.27404617,105620.0,105610.0,2.6693645]
[1749357204575,0.27404617,105620.0,105610.0,2.6390645]
[1749357205383,0.27404617,105620.0,105610.0,2.6390646]
[1749357207777,0.16951836,105620.0,105610.0,2.74359241]
[1749357209782,0.16951836,105620.0,105610.0,2.02199241]
[1749357209988,0.16951836,105620.0,105610.0,2.74359241]
[1749357210889,0.16951836,105620.0,105610.0,2.53699091]
[1749357216900,0.16951836,105620.0,105610.0,1.81539091]
[1749357217299,0.16951836,105620.0,105610.0,2.53699091]
[1749357219900,0.16951836,105620.0,105610.0,2.36409091]
[1749357225001,0.16951836,105620.0,105610.0,1.7322031]
[1749357225190,0.16951836,105620.0,105610.0,2.30201091]
[1749357225801,0.16951836,105620.0,105610.0,2.47491091]
[1749357227101,0.16951836,105620.0,105610.0,2.04539091]
[1749357228202,0.16951836,105620.0,105610.0,1.32379091]
[1749357228503,0.16951836,105620.0,105610.0,2.04539091]
[1749357229802,0.16951836,105620.0,105610.0,1.4137831]
[1749357230002,0.16951836,105620.0,105610.0,2.14769895]
[1749357230205,0.27404617,105620.0,105610.0,2.14769895]
[1749357230503,0.16951836,105620.0,105610.0,2.14769895]
[1749357231006,0.27404617,105620.0,105610.0,2.14769895]
[1749357231209,0.16951836,105620.0,105610.0,2.14769895]
[1749357231808,0.16951836,105620.0,105610.0,1.97479895]
[1749357233216,0.16951836,105620.0,105610.0,1.61399895]
[1749357236317,0.16951836,105620.0,105610.0,1.25319895]
[1749357236813,0.16951836,105620.0,105610.0,1.61399895]
[1749357238914,0.16951836,105620.0,105610.0,1.25319895]
[1749357239107,0.16951836,105620.0,105610.0,1.61399895]
[1749357240719,0.06499055,105620.0,105610.0,1.61399895]
[1749357240914,0.16951836,105620.0,105610.0,1.61399895]
[1749357241115,0.16951836,105620.0,105610.0,1.71852676]
[1749357242918,0.16951836,105620.0,105610.0,1.35772676]
[1749357243117,0.16951836,105620.0,105610.0,1.71852676]
[1749357243918,0.16951836,105620.0,105610.0,1.65940424]
[1749357244919,0.16951836,105620.0,105610.0,1.72160424]
[1749357249318,0.00419055,105620.0,105610.0,1.72160424]
[1749357249526,0.00034177,105620.0,105610.0,1.77865091]
[1749357249820,0.00034177,105620.0,105610.0,2.0747378]
[1749357254725,0.00034177,105620.0,105610.0,2.2319378]
[1749357254924,0.00034177,105620.0,105610.0,2.0747378]
[1749357257720,0.00034177,105620.0,105610.0,2.38567868]
[1749357257929,0.00014177,105620.0,105610.0,2.17662306]
[1749357258121,0.00014177,105620.0,105610.0,1.98506398]
[1749357258318,0.00034177,105620.0,105610.0,1.88053617]
[1749357258522,0.10486958,105620.0,105610.0,1.98506398]
[1749357258722,0.10891836,105620.0,105610.0,1.98506398]
[1749357259126,0.10891836,105620.0,105610.0,1.77865091]
[1749357259327,0.07083271,105620.0,105610.0,1.77865091]
[1749357259523,0.07083271,105620.0,105610.0,2.0747378]
[1749357260028,1e-08,105620.0,105610.0,2.12740999]
[1749357260223,0.00014177,105630.0,105620.0,0.1572]
[1749357260429,0.10452781,105630.0,105620.0,2.3483292]
[1749357260624,0.10452781,105630.0,105620.0,2.36571302]
[1749357260819,0.10452781,105630.0,105620.0,2.46039654]
[1749357261223,0.00014177,105640.0,105620.0,1.98727644]
[1749357261417,0.00014177,105640.0,105630.0,0.55501971]
[1749357261617,0.10466958,105640.0,105630.0,0.90501971]
[1749357262229,0.00014177,105640.0,105630.0,0.90501971]
[1749357262528,0.10666958,105640.0,105630.0,0.90501971]
[1749357262728,0.10666958,105640.0,105630.0,0.91426788]
[1749357263630,0.10866958,105640.0,105630.0,0.91426788]
[1749357264929,0.10866958,105640.0,105630.0,1.07146788]
[1749357266536,0.13966958,105640.0,105630.0,1.07146788]
[1749357269139,0.17176958,105640.0,105630.0,1.07146788]
[1749357269542,0.17176958,105640.0,105630.0,1.50086788]
[1749357270239,0.17176958,105640.0,105630.0,1.67376788]
[1749357271339,0.20256958,105640.0,105630.0,1.31296788]
[1749357271540,0.30709739,105640.0,105630.0,1.31296788]
[1749357273641,0.20256958,105640.0,105630.0,1.30799577]
[1749357273841,0.20256958,105640.0,105630.0,1.51417146]
[1749357275049,0.20661836,105640.0,105630.0,1.51417146]
[1749357279345,0.20661836,105640.0,105630.0,2.04113146]
[1749357279650,0.20561836,105640.0,105630.0,2.04113146]
[1749357280152,0.20361836,105640.0,105630.0,2.04113146]
[1749357280352,0.20461836,105640.0,105630.0,1.51417146]
[1749357280652,0.20461836,105640.0,105630.0,2.04109146]
[1749357282252,0.20461836,105640.0,105630.0,1.98210707]
[1749357282457,0.20461836,105640.0,105630.0,1.30799577]
[1749357282642,0.30914617,105640.0,105630.0,2.18850698]
[1749357282846,0.66994617,105640.0,105630.0,1.98233129]
[1749357283454,0.10009055,105640.0,105630.0,1.98233129]
[1749357283650,0.00619055,105640.0,105630.0,2.47376267]
[1749357283849,0.00619055,105640.0,105630.0,2.78722175]
[1749357284151,0.00234177,105640.0,105630.0,2.68269394]
[1749357284353,0.00234177,105640.0,105630.0,2.94184606]
[1749357284854,0.10586958,105640.0,105630.0,2.94184606]
[1749357285054,0.57372781,105660.0,105640.0,0.1419152]
[1749357285255,0.10452781,105650.0,105640.0,1.24378424]
[1749357285548,0.4692,105660.0,105640.0,1.24378424]
[1749357285757,0.10452781,105650.0,105640.0,1.52767953]
[1749357285950,0.13932781,105650.0,105640.0,1.52767953]
[1749357286346,0.13932781,105650.0,105640.0,1.52967953]
[1749357286551,0.0348,105650.0,105640.0,1.52967953]
[1749357286751,0.13932781,105650.0,105640.0,1.23359264]
[1749357286951,0.13932781,105650.0,105640.0,1.03132705]
[1749357287147,0.21182781,105650.0,105640.0,1.22544705]
[1749357287347,0.21182781,105650.0,105640.0,1.22744705]
[1749357287549,0.21182781,105650.0,105640.0,0.77924705]
[1749357287550,0.31635562,105650.0,105640.0,0.77924705]
[1749357287851,0.21182781,105650.0,105640.0,1.22744705]
[1749357288157,0.21182781,105650.0,105640.0,1.40034705]
[1749357288954,0.21182781,105650.0,105640.0,0.84542705]
[1749357289257,0.21182781,105650.0,105640.0,1.40038705]
[1749357292253,0.21182781,105650.0,105640.0,1.69647394]
[1749357292954,0.21182781,105650.0,105640.0,1.40038705]
[1749357297652,0.21182781,105650.0,105640.0,1.39878705]
[1749357299666,0.21182781,105650.0,105640.0,1.75958705]
[1749357299866,0.21182781,105650.0,105640.0,2.05567394]
[1749357305463,0.11134878,105650.0,105640.0,1.14151394]
[1749357305665,0.78573221,105650.0,105640.0,1.89979527]
[1749357305869,0.78573221,105650.0,105640.0,1.72693527]
[1749357306068,0.78573221,105650.0,105640.0,0.98512838]
[1749357306261,0.78573221,105650.0,105640.0,1.43084838]
[1749357309368,0.78573221,105650.0,105640.0,1.37212741]
[1749357312977,0.6812044,105650.0,105640.0,1.37212741]
[1749357314881,0.80495943,105650.0,105640.0,0.67252705]
[1749357315079,0.80495943,105650.0,105640.0,1.34157101]
[1749357316275,0.70043162,105650.0,105640.0,1.34157101]
[1749357317382,1.06123162,105650.0,105640.0,1.34157101]
[1749357317680,1.16575943,105650.0,105640.0,1.37064741]
[1749357317880,1.06123162,105650.0,105640.0,1.37064741]
[1749357318084,0.852176,105650.0,105640.0,1.37064741]
[1749357318384,1.06123162,105650.0,105640.0,1.37064741]
[1749357319376,1.06123162,105650.0,105640.0,1.22344705]
[1749357319578,1.16575943,105650.0,105640.0,1.22344705]
[1749357320477,1.06123162,105650.0,105640.0,1.22344705]
[1749357321588,1.06123162,105650.0,105640.0,0.77924705]
[1749357321780,1.06123162,105650.0,105640.0,1.22308705]
[1749357321981,1.06123162,105650.0,105640.0,1.34084302]
[1749357323590,1.06123162,105650.0,105640.0,0.89700302]
[1749357323792,1.06123162,105650.0,105640.0,1.34064302]
[1749357326194,1.06123162,105650.0,105640.0,1.34032302]
[1749357327493,1.16575943,105650.0,105640.0,1.34032302]
[1749357328096,1.06123162,105650.0,105640.0,1.34032302]
[1749357328295,1.06123162,105650.0,105640.0,1.48752338]
[1749357330602,1.06123162,105650.0,105640.0,1.34032302]
[1749357334201,1.06123162,105650.0,105640.0,1.48752338]
[1749357335094,1.06123162,105650.0,105640.0,1.36976741]
[1749357341909,0.33963162,105650.0,105640.0,1.36976741]
[1749357342108,1.06123162,105650.0,105640.0,1.36976741]
[1749357342411,0.33963162,105650.0,105640.0,1.36976741]
[1749357342605,1.06123162,105650.0,105640.0,1.36976741]
[1749357343817,0.33963162,105650.0,105640.0,1.36976741]
[1749357344013,1.06123162,105650.0,105640.0,1.36976741]
[1749357347123,0.33963162,105650.0,105640.0,1.36976741]
[1749357347318,1.06123162,105650.0,105640.0,1.36976741]
[1749357348618,0.33963162,105650.0,105640.0,1.36976741]
[1749357348825,1.06123162,105650.0,105640.0,1.36976741]
[1749357349531,0.33963162,105650.0,105640.0,1.36976741]
[1749357349826,1.06123162,105650.0,105640.0,1.36976741]
[1749357350325,0.33963162,105650.0,105640.0,1.36976741]
[1749357350526,1.06123162,105650.0,105640.0,1.36976741]
[1749357350827,1.06123162,105650.0,105640.0,1.57568874]
[1749357351322,0.33963162,105650.0,105640.0,1.57568874]
[1749357351620,1.06123162,105650.0,105640.0,1.57568874]
[1749357356627,1.06123162,105650.0,105640.0,1.13236874]
[1749357356932,1.06123162,105650.0,105640.0,1.5721849]
[1749357357133,1.06123162,105650.0,105640.0,1.36626357]
[1749357360326,1.06123162,105650.0,105640.0,1.5721849]
[1749357360638,1.06123162,105650.0,105640.0,1.36626357]
[1749357360934,1.06123162,105650.0,105640.0,1.25954357]
[1749357362537,0.33963162,105650.0,105640.0,1.25954357]
[1749357362737,1.06123162,105650.0,105640.0,1.25954357]
[1749357363943,1.06123162,105650.0,105640.0,0.82006357]
[1749357364138,1.06123162,105650.0,105640.0,1.22924758]
[1749357364635,1.06123162,105650.0,105640.0,0.21291852]
[1749357364636,1.16575943,105650.0,105640.0,0.21291852]
[1749357364937,1.16575943,105650.0,105640.0,1.21076326]
[1749357365141,1.16575943,105650.0,105640.0,0.84076326]